[Event "45th FIDE Womens Olympiad 2024"]
[Site "Budapest"]
[Date "2024.09.16"]
[Round "6.143"]
[White "Gonzalez Peguero, Mary Loly"]
[Black "Nandin-Erdene, Davaademberel"]
[Result "1-0"]
[ECO "D30"]
[WhiteElo "1889"]
[BlackElo "2039"]
[Annotator "NA"]
[PlyCount "133"]
[EventDate "2024.09.05"]
[EventType "team-tourn"]
[EventCountry "HUN"]
[SourceTitle "playchess.com"]
[Source "ChessBase"]
[SourceQuality "1"]
[WhiteTeam "Dominican Republic"]
[BlackTeam "Hungary C"]
[WhiteTeamCountry "DOM"]
[TimeControl "40/5400+30:1800+30"]

1. c4 e6 2. Nf3 d5 3. cxd5 exd5 4. d4 Nf6 5. Bf4 Bb4+ 6. Nbd2 O-O 7. e3 Bg4 8. Be2 c6 9. O-O Nbd7 10. a3 Be7 11. Rc1 Nh5 12. Be5 f6 13. Bg3 Nxg3 14. hxg3 Bd6 15. Qb3 Rb8 16. e4 Be6 17. Bd3 Re8 18. Qc2 dxe4 19. Nxe4 Nf8 20. Rfe1 Kh8 21. Nxd6 Qxd6 22. Re4 Ng6 23. Nh4 Nf8 24. Nf3 Ng6 25. Nh4 Nf8 26. Nf3 g5 27. Rce1 Bf7 28. Rxe8 Rxe8 29. Rxe8 Bxe8 30. Qc5 Qxc5 31. dxc5 Ne6 32. b4 Bd7 33. Kf1 g4 34. Nd2 Nd4 35. Nc4 Nb5 36. Na5 b6 37. cxb6 axb6 38. Nc4 Be6 39. a4 Bxc4 40. Bxc4 Nc7 41. a5 b5 42. Bd3 Na6 43. Bf5 Nxb4 44. Bc8 c5 45. Bb7 Kg7 46. a6 Nxa6 47. Bxa6 b4 48. Bc4 h5 49. Ke2 Kg6 50. Ke3 Kg5 51. Ke4 f5+ 52. Ke5 Kg6 53. Bd3 b3 54. Bxf5+ Kg5 55. Bb1 b2 56. Kd5 h4 57. gxh4+ Kxh4 58. Kxc5 Kg5 59. Kd5 Kf4 60. Kd4 Kg5 61. Ke5 Kh5 62. Kf5 Kh4 63. Kf4 g3 64. f3 Kh5 65. Kxg3 Kg5 66. f4+ Kf6 67. Kf3 1-0

[Event "45th FIDE Womens Olympiad 2024"]
[Site "Budapest"]
[Date "2024.09.16"]
[Round "6.144"]
[White "Sipos, Stefania"]
[Black "Ramirez Luzon, Franchesca"]
[Result "0-1"]
[ECO "B27"]
[WhiteElo "1993"]
[BlackElo "1820"]
[Annotator "NA"]
[PlyCount "102"]
[EventDate "2024.09.05"]
[EventType "team-tourn"]
[EventCountry "HUN"]
[SourceTitle "playchess.com"]
[Source "ChessBase"]
[SourceQuality "1"]
[WhiteTeam "Hungary C"]
[BlackTeam "Dominican Republic"]
[BlackTeamCountry "DOM"]
[TimeControl "40/5400+30:1800+30"]

1. e4 c5 2. Nf3 g6 3. d4 cxd4 4. Qxd4 Nf6 5. e5 Nc6 6. Qa4 Nd5 7. Qe4 Nc7 8. Nc3 Bg7 9. Bf4 Ne6 10. Bd2 Qc7 11. Nd5 Qb8 12. Bc3 b5 13. Qh4 a5 14. a3 b4 15. axb4 axb4 16. Rxa8 Qxa8 17. Bxb4 Qa1+ 18. Kd2 h5 19. Ba3 Bh6+ 20. Kc3 g5 21. Qe4 g4 22. Qe1 Qxe1+ 23. Nxe1 Bg7 24. Nd3 Nxe5 25. Kd2 Nc4+ 26. Kc1 Bb7 27. Ne3 Bh6 28. Kb1 Bxe3 29. fxe3 Nxe3 30. Ne1 Be4 31. Rg1 Nd4 32. Bd3 Bxd3 33. Nxd3 Nexc2 34. Bc5 d6 35. Bb6 Kd7 36. Rf1 f5 37. Rf2 Rb8 38. Ba5 Ne3 39. Nf4 e5 40. Nd3 h4 41. Bd2 g3 42. Bxe3 gxf2 43. Bxf2 h3 44. Bxd4 hxg2 45. Bg1 f4 46. Kc2 f3 47. Kc3 e4 48. Nf4 Rf8 49. Nh3 e3 50. Bxe3 f2 51. Bxf2 Rxf2 0-1

[Event "45th FIDE Womens Olympiad 2024"]
[Site "Budapest"]
[Date "2024.09.16"]
[Round "6.145"]
[White "Corrales Jimenez, Zenia"]
[Black "Smith, Olivia"]
[Result "1-0"]
[ECO "B15"]
[WhiteElo "2170"]
[BlackElo "2087"]
[PlyCount "87"]
[EventDate "2024.09.05"]
[EventType "team-tourn"]
[EventCountry "HUN"]
[WhiteTeam "Mexico"]
[BlackTeam "Wales"]
[WhiteTeamCountry "MEX"]
[BlackTeamCountry "WLS"]
[TimeControl "40/5400+30:1800+30"]

1. e4 c6 2. d4 d5 3. Nc3 dxe4 4. Nxe4 Nf6 5. Nxf6+ exf6 6. c3 Bd6 7. Bd3 O-O 8. Qc2 Re8+ 9. Ne2 h5 10. O-O h4 11. Nf4 Nd7 12. Qd1 Nf8 13. Qf3 a5 14. Be3 a4 15. c4 Bb8 16. Rfd1 Qd6 17. c5 Qc7 18. g3 Be6 19. d5 cxd5 20. Bb5 Rd8 21. Nxd5 Bxd5 22. Rxd5 Rxd5 23. Qxd5 hxg3 24. hxg3 a3 25. b4 Qe5 26. Qxe5 Bxe5 27. Rd1 Rb8 28. Bc4 Ne6 29. Rd7 Bc3 30. Bd2 Be5 31. Bd5 b6 32. Bxe6 fxe6 33. c6 Rc8 34. b5 g5 35. Bb4 f5 36. Bxa3 Ra8 37. Bd6 Bxd6 38. Rxd6 Kf7 39. Rd7+ Kf6 40. c7 Rc8 41. a4 e5 42. a5 Ke6 43. Rh7 bxa5 44. b6 1-0

[Event "45th FIDE Womens Olympiad 2024"]
[Site "Budapest"]
[Date "2024.09.16"]
[Round "6.146"]
[White "Camp, Imogen A L"]
[Black "Miranda Rodriguez, Tania"]
[Result "0-1"]
[ECO "E38"]
[WhiteElo "1923"]
[BlackElo "2090"]
[PlyCount "134"]
[EventDate "2024.09.05"]
[EventType "team-tourn"]
[EventCountry "HUN"]
[WhiteTeam "Wales"]
[BlackTeam "Mexico"]
[WhiteTeamCountry "WLS"]
[BlackTeamCountry "MEX"]
[TimeControl "40/5400+30:1800+30"]

1. d4 Nf6 2. c4 e6 3. Nf3 d5 4. Nc3 Bb4 5. e3 O-O 6. Qc2 c5 7. cxd5 cxd4 8. Nxd4 Nxd5 9. Bd2 Be7 10. a3 Bf6 11. Bd3 h6 12. O-O Bxd4 13. exd4 Nc6 14. Ne2 Bd7 15. Be4 Nce7 16. Qd3 Bc6 17. Qg3 Qc7 18. Qh4 Nf6 19. Bd3 Ned5 20. Bxh6 gxh6 21. Qxh6 Rfe8 22. f4 Ne3 23. Qxf6 Nxf1 24. Qg5+ Kf8 25. Rxf1 f5 26. Qf6+ Qf7 27. Qh8+ Ke7 28. Qe5 Kf8 29. Bc4 Qg7 30. Qd6+ Qe7 31. Qe5 Qg7 32. Qd6+ Qe7 33. Qxe7+ Kxe7 34. Re1 Rad8 35. Kf2 Kf6 36. h3 Rg8 37. Rg1 Bd5 38. Bd3 Rh8 39. Ke3 Rdg8 40. Kf2 Rh4 41. a4 a5 42. Bb5 Rg7 43. Bd3 Bc6 44. b3 Bd5 45. Bc4 Be4 46. Kf1 Ke7 47. Kf2 Kd6 48. Kf1 Rg8 49. Kf2 Rg6 50. Kf1 Rg7 51. Kf2 Bc6 52. Kf1 b6 53. Kf2 Rg8 54. Kf1 Rg6 55. Kf2 Rg7 56. Kf1 Rc7 57. Kf2 Bxa4 58. Bxe6 Bb5 59. Bxf5 Bxe2 60. Kxe2 Rxf4 61. g4 Re7+ 62. Kd2 Rf2+ 63. Kd3 Rf3+ 64. Kc2 Re2+ 65. Kd1 Ra2 66. Re1 Rxh3 67. Re2 Rh1+ {0-} 0-1

[Event "45th FIDE Womens Olympiad 2024"]
[Site "Budapest"]
[Date "2024.09.16"]
[Round "6.147"]
[White "Padilla Garcia, Cecilia Xasive"]
[Black "Chong, Kimberly"]
[Result "1/2-1/2"]
[ECO "B01"]
[WhiteElo "1954"]
[BlackElo "1779"]
[PlyCount "108"]
[EventDate "2024.09.05"]
[EventType "team-tourn"]
[EventCountry "HUN"]
[WhiteTeam "Mexico"]
[BlackTeam "Wales"]
[WhiteTeamCountry "MEX"]
[BlackTeamCountry "WLS"]
[TimeControl "40/5400+30:1800+30"]

1. e4 d5 2. exd5 Qxd5 3. Nc3 Qd8 4. d4 Nf6 5. Nf3 Bg4 6. h3 Bxf3 7. Qxf3 c6 8. Be3 e6 9. O-O-O Bb4 10. Bg5 Bxc3 11. Qxc3 Ne4 12. Bxd8 Nxc3 13. bxc3 Kxd8 14. c4 Ke7 15. c3 Rd8 16. Be2 Nd7 17. Rhe1 Kf8 18. Kc2 Rac8 19. Rb1 Rc7 20. Red1 Nf6 21. Bf3 Rdd7 22. a4 Ke7 23. a5 a6 24. g4 g5 25. h4 h6 26. hxg5 hxg5 27. Rh1 Rd8 28. Rh6 Rg8 29. Kd3 Rg7 30. Rh8 Rg8 31. Rxg8 Nxg8 32. d5 Rd7 33. Ke3 cxd5 34. cxd5 exd5 35. c4 dxc4 36. Rxb7 Nf6 37. Rxd7+ Kxd7 38. Kd4 c3 39. Kxc3 Kd6 40. Kd4 Nd7 41. Be2 Nc5 42. Bc4 f6 43. Bd5 Nd7 44. f3 Nc5 45. Bc4 Nb7 46. Bxa6 Nxa5 47. Ke4 Nc6 48. Kf5 Ke7 49. Bb7 Nd4+ 50. Ke4 Ne6 51. Bd5 Nc5+ 52. Kf5 Nd7 53. Bc6 Ne5 54. Ba8 Nd7 1/2-1/2

[Event "45th FIDE Womens Olympiad 2024"]
[Site "Budapest"]
[Date "2024.09.16"]
[Round "6.148"]
[White "Kong, Emma Zihan"]
[Black "Tec Rodas, Sofia Isavelina"]
[Result "0-1"]
[ECO "D13"]
[WhiteElo "1747"]
[BlackElo "1800"]
[PlyCount "92"]
[EventDate "2024.09.05"]
[EventType "team-tourn"]
[EventCountry "HUN"]
[WhiteTeam "Wales"]
[BlackTeam "Mexico"]
[WhiteTeamCountry "WLS"]
[BlackTeamCountry "MEX"]
[TimeControl "40/5400+30:1800+30"]

1. d4 d5 2. c4 c6 3. cxd5 cxd5 4. Nc3 Nc6 5. Nf3 Nf6 6. Bf4 e6 7. e3 Be7 8. Bb5 Bd7 9. Bxc6 bxc6 10. O-O c5 11. dxc5 Bxc5 12. a3 a5 13. Rc1 Be7 14. Nd4 O-O 15. Ncb5 Bxb5 16. Nxb5 a4 17. Qe2 Ne4 18. Rc6 Nc5 19. Rc1 Nb3 20. R1c2 Na5 21. Bc7 Qd7 22. Bxa5 Rxa5 23. Nd4 Bd6 24. Qd2 Raa8 25. Nb5 Be5 26. f4 Qb7 27. Nc7 Bxc7 28. Rxc7 Qb3 29. R7c3 Qb6 30. Rc6 Qb3 31. Qd4 h6 32. R6c3 Qb5 33. e4 dxe4 34. Rg3 g6 35. Qxe4 Kg7 36. Qd4+ Kg8 37. Rc7 Qf5 38. Rc5 Qb1+ 39. Kf2 Rad8 40. Qc3 Qd1 41. Rf3 Rd2+ 42. Kg3 Qe2 43. Kh4 Qxg2 44. h3 Rf2 45. Rxf2 Qxf2+ 46. Qg3 Qxc5 {0-} 0-1

[Event "45th FIDE Womens Olympiad 2024"]
[Site "Budapest"]
[Date "2024.09.16"]
[Round "6.149"]
[White "February, Jesse Nikki"]
[Black "De Blecourt, Sandra"]
[Result "1/2-1/2"]
[ECO "B33"]
[WhiteElo "2013"]
[BlackElo "2065"]
[PlyCount "67"]
[EventDate "2024.09.05"]
[EventType "team-tourn"]
[EventCountry "HUN"]
[WhiteTeam "South Africa"]
[BlackTeam "Denmark"]
[WhiteTeamCountry "RSA"]
[BlackTeamCountry "DEN"]
[TimeControl "40/5400+30:1800+30"]

1. e4 c5 2. Nf3 Nc6 3. d4 cxd4 4. Nxd4 Nf6 5. Nc3 e5 6. Ndb5 d6 7. Bg5 a6 8. Na3 b5 9. Nd5 Be7 10. Bxf6 Bxf6 11. c4 b4 12. Nc2 a5 13. g3 Bg5 14. h4 Bh6 15. Bh3 O-O 16. Bxc8 Rxc8 17. Qh5 Nb8 18. b3 Nd7 19. g4 Bf4 20. g5 f5 21. exf5 Rxf5 22. Qg4 Rf7 23. Rd1 Rc5 24. O-O Nb6 25. Nxb6 Qxb6 26. Qe6 e4 27. Rd5 Rxd5 28. Qxd5 Bg3 29. h5 Bxf2+ 30. Kg2 g6 31. Qa8+ Rf8 32. Qd5+ Rf7 33. Qa8+ Rf8 34. Qd5+ 1/2-1/2

[Event "45th FIDE Womens Olympiad 2024"]
[Site "Budapest"]
[Date "2024.09.16"]
[Round "6.150"]
[White "Kakulidis, Ellen"]
[Black "Badenhorst, Chloe"]
[Result "1/2-1/2"]
[ECO "D30"]
[WhiteElo "2048"]
[BlackElo "1981"]
[PlyCount "175"]
[EventDate "2024.09.05"]
[EventType "team-tourn"]
[EventCountry "HUN"]
[WhiteTeam "Denmark"]
[BlackTeam "South Africa"]
[WhiteTeamCountry "DEN"]
[BlackTeamCountry "RSA"]
[TimeControl "40/5400+30:1800+30"]

1. d4 d5 2. c4 e6 3. g3 a6 4. Bg2 dxc4 5. Nf3 b5 6. O-O Bb7 7. b3 cxb3 8. Qxb3 Nf6 9. Bb2 Nbd7 10. Rd1 Bd5 11. Qc2 Be4 12. Qd2 c6 13. Nc3 Bd5 14. Qc2 b4 15. Nb1 c5 16. dxc5 Bxc5 17. Nbd2 Rc8 18. Qd3 Qb6 19. e3 O-O 20. Nb3 Be7 21. Bd4 Qb7 22. Ne1 Bxg2 23. Nxg2 e5 24. Bb2 Rfd8 25. Rac1 Rxc1 26. Rxc1 Qb6 27. Qc4 a5 28. Nh4 a4 29. Nd2 Nc5 30. Ndf3 e4 31. Ne5 Rd5 32. Bd4 Qe6 33. f4 exf3 34. Nhxf3 h6 35. Rb1 Bd6 36. Rxb4 Ncd7 37. Nxd7 Nxd7 38. Rxa4 Qe4 39. Qe2 Rf5 40. Nh4 Rg5 41. Nf3 Rf5 42. Nd2 Qc6 43. Rc4 Qa6 44. Qg4 Ne5 45. Qxf5 Nxc4 46. Qd3 Qxa2 47. Nxc4 Bf8 48. Ne5 Qa5 49. Qf1 Qa2 50. Qf5 Qb3 51. Kg2 Qd5+ 52. Kg1 Qa2 53. Qf1 Qe6 54. Qb1 Bd6 55. Qb2 f6 56. Nd3 Qe4 57. Qb3+ Kh7 58. Nf2 Qc6 59. Qb1+ Kh8 60. Qf5 Qc1+ 61. Kg2 Qc6+ 62. Qe4 Qb5 63. Nd3 f5 64. Qa8+ Kh7 65. Nf4 Bxf4 66. exf4 Qe2+ 67. Bf2 Qc2 68. Qd5 Kh8 69. Qf3 Kh7 70. h3 Kg8 71. g4 Kh7 72. Qd5 fxg4 73. hxg4 Kh8 74. Qe5 Qd2 75. Qe8+ Kh7 76. Qe4+ Kh8 77. Kg3 Qc3+ 78. Qe3 Qc4 79. Qd4 Qf7 80. Qd8+ Kh7 81. Qd3+ Kg8 82. Bd4 h5 83. g5 Qd7 84. f5 Qd5 85. f6 Qxg5+ 86. Kh2 gxf6 87. Qc4+ Kg7 88. Qc7+ 1/2-1/2

[Event "45th FIDE Womens Olympiad 2024"]
[Site "Budapest"]
[Date "2024.09.16"]
[Round "6.151"]
[White "Klaasen, Robyn Julian"]
[Black "Guindy, Esmat Susanne"]
[Result "1-0"]
[ECO "D11"]
[WhiteElo "1764"]
[BlackElo "2015"]
[PlyCount "81"]
[EventDate "2024.09.05"]
[EventType "team-tourn"]
[EventCountry "HUN"]
[WhiteTeam "South Africa"]
[BlackTeam "Denmark"]
[WhiteTeamCountry "RSA"]
[BlackTeamCountry "DEN"]
[TimeControl "40/5400+30:1800+30"]

1. d4 d5 2. Nf3 Bf5 3. c4 e6 4. g3 Nf6 5. Bg2 c6 6. Qb3 Qb6 7. Nc3 Nbd7 8. O-O Be7 9. Re1 O-O 10. Qa4 dxc4 11. Qxc4 Ne4 12. e3 Rfd8 13. Nh4 Nd6 14. Qe2 Bxh4 15. gxh4 h6 16. e4 Bh7 17. Be3 Qa5 18. a3 Nf8 19. Kh1 Bg6 20. Bf3 f5 21. e5 Ne4 22. h5 Nxc3 23. bxc3 Be8 24. Rg1 Kh7 25. Qc2 Qc7 26. Rg3 Rd7 27. Qb3 Rf7 28. Bf4 Rd8 29. Rd1 Rfd7 30. Rdg1 Re7 31. Qc2 Nd7 32. Qc1 Nf8 33. Qe3 c5 34. d5 exd5 35. e6 Qc8 36. Rxg7+ Rxg7 37. Rxg7+ Kxg7 38. Qe5+ Kg8 39. e7 Bf7 40. exf8=Q+ Rxf8 41. Bxh6 1-0

[Event "45th FIDE Womens Olympiad 2024"]
[Site "Budapest"]
[Date "2024.09.16"]
[Round "6.152"]
[White "Durrfeld, Sofie Bech"]
[Black "Nel, Hayley"]
[Result "1/2-1/2"]
[ECO "B12"]
[WhiteElo "1937"]
[BlackElo "1753"]
[PlyCount "108"]
[EventDate "2024.09.05"]
[EventType "team-tourn"]
[EventCountry "HUN"]
[WhiteTeam "Denmark"]
[BlackTeam "South Africa"]
[WhiteTeamCountry "DEN"]
[BlackTeamCountry "RSA"]
[TimeControl "40/5400+30:1800+30"]

1. e4 c6 2. d4 d5 3. e5 Bf5 4. h4 Qb6 5. g4 Bd7 6. c4 dxc4 7. Bxc4 e6 8. Nc3 Ne7 9. Nge2 c5 10. dxc5 Qxc5 11. Ne4 Qa5+ 12. Bd2 Qxe5 13. Qc2 Bc6 14. f3 Nd5 15. O-O-O Nd7 16. Bxd5 Qxd5 17. N2c3 Qe5 18. Rhe1 Qh2 19. h5 h6 20. Re2 Qh3 21. Qd3 O-O-O 22. Bf4 Qh4 23. Rh2 Nc5 24. Qc2 Rxd1+ 25. Qxd1 Qd8 26. Rd2 Qb6 27. Be3 Be7 28. Bf2 Qa5 29. Kb1 Nxe4 30. Nxe4 Bxe4+ 31. fxe4 Rd8 32. Rxd8+ Qxd8 33. Qxd8+ Bxd8 34. Kc2 a6 35. Kd3 Bf6 36. b3 Kd7 37. a4 Be5 38. Kc4 Ke7 39. Kc5 Bc7 40. Bh4+ Kd7 41. Be1 b6+ 42. Kc4 Kc6 43. Bd2 Bd6 44. Bc3 g6 45. Bg7 Bf4 46. Bf8 gxh5 47. gxh5 f5 48. exf5 exf5 49. Kd4 Bg5 50. Ke5 f4 51. Ke4 b5 52. axb5+ Kxb5 53. Bd6 a5 54. Kf3 Kc6 1/2-1/2

[Event "45th FIDE Womens Olympiad 2024"]
[Site "Budapest"]
[Date "2024.09.16"]
[Round "6.153"]
[White "Stojkovska, Monika"]
[Black "Samaganova, Aleksandra"]
[Result "1/2-1/2"]
[ECO "A96"]
[WhiteElo "2043"]
[BlackElo "1948"]
[PlyCount "73"]
[EventDate "2024.09.05"]
[EventType "team-tourn"]
[EventCountry "HUN"]
[WhiteTeam "North Macedonia"]
[BlackTeam "Kyrgyzstan"]
[BlackTeamCountry "KGZ"]
[TimeControl "40/5400+30:1800+30"]

1. d4 e6 2. c4 f5 3. Nf3 Nf6 4. g3 Be7 5. Bg2 O-O 6. O-O d6 7. Nc3 Ne4 8. Qc2 Nxc3 9. bxc3 Nc6 10. d5 Na5 11. dxe6 Bxe6 12. Nd4 Bxc4 13. Nxf5 Bf6 14. Rb1 Rb8 15. Ne3 Bf7 16. Be4 h6 17. c4 Nc6 18. Nd5 Nd4 19. Qd3 Ne6 20. Be3 b6 21. Qc2 a5 22. Qd2 Bg5 23. f4 Bf6 24. Bg2 Nc5 25. Bd4 Bxd4+ 26. Qxd4 Ne6 27. Qc3 Bh5 28. e4 c5 29. Bf3 Bxf3 30. Qxf3 Nd4 31. Qg4 Qe8 32. Rfe1 Nc2 33. Re2 Nd4 34. Ree1 Nc2 35. Re2 Nd4 36. Ree1 Nc2 37. Re2 1/2-1/2

[Event "45th FIDE Womens Olympiad 2024"]
[Site "Budapest"]
[Date "2024.09.16"]
[Round "6.154"]
[White "Zhanybekova, Begimay"]
[Black "Manova, Ivana"]
[Result "0-1"]
[ECO "C45"]
[WhiteElo "1784"]
[BlackElo "2032"]
[PlyCount "102"]
[EventDate "2024.09.05"]
[EventType "team-tourn"]
[EventCountry "HUN"]
[WhiteTeam "Kyrgyzstan"]
[BlackTeam "North Macedonia"]
[WhiteTeamCountry "KGZ"]
[TimeControl "40/5400+30:1800+30"]

1. e4 e5 2. Nf3 Nc6 3. d4 exd4 4. Nxd4 Bc5 5. Nb3 Bb6 6. Nc3 d6 7. Qe2 Nge7 8. Be3 O-O 9. O-O-O Qe8 10. f3 f5 11. exf5 Bxf5 12. g4 Bd7 13. Kb1 Ne5 14. Bg2 Bc6 15. Rhf1 N7g6 16. Bh1 Bxe3 17. Qxe3 Nxf3 18. Qc1 Nxh2 19. Rfe1 Ne5 20. Nd5 Qf7 21. Be4 Nexg4 22. Ne7+ Kh8 23. Nxc6 bxc6 24. Bxc6 Rab8 25. Qg5 Ne5 26. Bd5 Nhf3 27. Qc1 Qf4 28. Rh1 Qxc1+ 29. Kxc1 Rf4 30. Nd2 Nxd2 31. Rxd2 Rbf8 32. Rh3 c6 33. Bg2 Rf2 34. Be4 Rf1+ 35. Rd1 g6 36. Rc3 d5 37. Bg2 Rxd1+ 38. Kxd1 Rf2 39. Re3 Nc4 40. Re8+ Kg7 41. b3 Kf7 42. Re1 Rxg2 43. bxc4 Rg4 44. cxd5 Rd4+ 45. Kc1 cxd5 46. Re3 a5 47. Rb3 h5 48. Rb5 a4 49. c3 Rc4 50. Rxd5 Rxc3+ 51. Kb2 Rc4 {0-} 0-1

[Event "45th FIDE Womens Olympiad 2024"]
[Site "Budapest"]
[Date "2024.09.16"]
[Round "6.155"]
[White "Zhezhovska, Monika"]
[Black "Lesbekova, Assel"]
[Result "1/2-1/2"]
[ECO "E35"]
[WhiteElo "2107"]
[BlackElo "1903"]
[PlyCount "119"]
[EventDate "2024.09.05"]
[EventType "team-tourn"]
[EventCountry "HUN"]
[WhiteTeam "North Macedonia"]
[BlackTeam "Kyrgyzstan"]
[BlackTeamCountry "KGZ"]
[TimeControl "40/5400+30:1800+30"]

1. d4 Nf6 2. c4 e6 3. Nc3 Bb4 4. Qc2 d5 5. cxd5 exd5 6. Bg5 Be6 7. e3 Nbd7 8. Nf3 c5 9. dxc5 Qa5 10. Bd3 Ne4 11. O-O Nxc3 12. bxc3 Bxc5 13. Nd4 Bxd4 14. cxd4 h6 15. Bf4 O-O 16. Rab1 Rfc8 17. Qe2 Nb6 18. Qh5 Qa3 19. Rbd1 Qf8 20. g4 Rc6 21. g5 g6 22. Qxh6 Qxh6 23. gxh6 Bh3 24. Rfe1 Bg4 25. Rc1 Rac8 26. e4 Be6 27. e5 Rc3 28. Bb1 Na4 29. Rxc3 Nxc3 30. Kg2 b6 31. h4 b5 32. a3 Rc4 33. Be3 Ra4 34. Bd3 Rxa3 35. h5 Kh7 36. Rh1 Ne4 37. hxg6+ fxg6 38. Bxb5 Bf5 39. Bc6 Nc3 40. Rc1 Be4+ 41. Kh3 Ne2 42. Rc5 Ra1 43. Kh4 Rg1 44. Bxd5 g5+ 45. Bxg5 Rh1+ 46. Kg4 Rg1+ 47. Kh5 Rh1+ 48. Bh4 Bxd5 49. Rc7+ Kg8 50. h7+ Kh8 51. Kg4 Rg1+ 52. Bg3 Be6+ 53. Kg5 Rh1 54. Rxa7 Rxh7 55. Ra8+ Kg7 56. Ra7+ Kg8 57. Ra8+ Kf7 58. Ra7+ Kg8 59. Ra8+ Kf7 60. Ra7+ 1/2-1/2

[Event "45th FIDE Womens Olympiad 2024"]
[Site "Budapest"]
[Date "2024.09.16"]
[Round "6.156"]
[White "Sezdbekova, Aizhan"]
[Black "Eftovska, Lea"]
[Result "1-0"]
[ECO "C30"]
[WhiteElo "1799"]
[BlackElo "1841"]
[PlyCount "57"]
[EventDate "2024.09.05"]
[EventType "team-tourn"]
[EventCountry "HUN"]
[WhiteTeam "Kyrgyzstan"]
[BlackTeam "North Macedonia"]
[WhiteTeamCountry "KGZ"]
[TimeControl "40/5400+30:1800+30"]

1. e4 e5 2. Nc3 Nf6 3. f4 d6 4. Nf3 Nbd7 5. d3 Be7 6. Be2 c6 7. O-O b5 8. a3 Qb6+ 9. Kh1 O-O 10. Qe1 Ng4 11. Bd1 Ngf6 12. Be3 Qc7 13. d4 exd4 14. Nxd4 Nc5 15. Bf3 Ne8 16. Nxc6 Qxc6 17. e5 Qa6 18. Bxa8 Nc7 19. Bxc5 dxc5 20. Be4 Qh6 21. Qe3 Be6 22. Rad1 f6 23. Nd5 Nxd5 24. Bxd5 Bxd5 25. Rxd5 fxe5 26. Rxe5 Bf6 27. Re8 Bd4 28. Qb3+ c4 29. Qxb5 1-0

[Event "45th FIDE Womens Olympiad 2024"]
[Site "Budapest"]
[Date "2024.09.16"]
[Round "6.157"]
[White "Serina, Arafat"]
[Black "Dornbusch, Tatiana"]
[Result "0-1"]
[ECO "A48"]
[WhiteElo "1552"]
[BlackElo "2212"]
[PlyCount "64"]
[EventDate "2024.09.05"]
[EventType "team-tourn"]
[EventCountry "HUN"]
[WhiteTeam "Jordan"]
[BlackTeam "Monaco"]
[WhiteTeamCountry "JOR"]
[BlackTeamCountry "MNC"]
[TimeControl "40/5400+30:1800+30"]

1. d4 c5 2. e3 Nf6 3. Nf3 g6 4. b3 Bg7 5. Bb2 O-O 6. Be2 d5 7. Nbd2 cxd4 8. exd4 Nc6 9. O-O Bf5 10. a3 Rc8 11. c4 Ne4 12. Ne5 Nxe5 13. dxe5 Nxd2 14. Qxd2 dxc4 15. Qxd8 Rfxd8 16. Bxc4 b5 17. Bxb5 Rc2 18. Bc1 Bxe5 19. Be3 Bxa1 20. Rxa1 a5 21. a4 Be6 22. Bb6 Ra8 23. Rb1 Rc3 24. h3 Rxb3 25. Rxb3 Bxb3 26. Kh2 Kf8 27. Kg3 Rc8 28. Kh4 Bxa4 29. Bxa4 Rc4+ 30. Kg3 Rxa4 31. f3 Ra2 32. Bd4 a4 {0-} 0-1

[Event "45th FIDE Womens Olympiad 2024"]
[Site "Budapest"]
[Date "2024.09.16"]
[Round "6.158"]
[White "Zvereva, Marija"]
[Black "Jeda, Helal"]
[Result "1-0"]
[ECO "A00"]
[WhiteElo "2035"]
[BlackElo "1569"]
[PlyCount "95"]
[EventDate "2024.09.05"]
[EventType "team-tourn"]
[EventCountry "HUN"]
[WhiteTeam "Monaco"]
[BlackTeam "Jordan"]
[WhiteTeamCountry "MNC"]
[BlackTeamCountry "JOR"]
[TimeControl "40/5400+30:1800+30"]

1. e4 c6 2. d3 d5 3. Nd2 e5 4. g3 Nf6 5. Bg2 Bg4 6. Ngf3 Bd6 7. h3 Be6 8. O-O Nbd7 9. a4 a5 10. Re1 O-O 11. Ng5 h6 12. Nxe6 fxe6 13. Nf1 Nh7 14. Nh2 Bc5 15. Be3 Qb6 16. Ng4 Rf7 17. Bxc5 Qxc5 18. h4 Raf8 19. Rf1 Nhf6 20. Ne3 Nb6 21. Qe2 Kh8 22. Kh2 Qd6 23. b3 Nfd7 24. Rad1 Kg8 25. Bh3 Qe7 26. f3 Nc5 27. Ng4 Ncd7 28. Rd2 c5 29. Qd1 Rc8 30. Rdf2 c4 31. exd5 exd5 32. dxc4 dxc4 33. Ne3 cxb3 34. Nf5 Qf8 35. Nd6 bxc2 36. Qd2 c1=Q 37. Rxc1 Rxc1 38. Nxf7 Rc7 39. Be6 Kh7 40. Qd3+ g6 41. h5 Qg7 42. hxg6+ Kg8 43. Nxe5+ Kh8 44. Nf7+ Kg8 45. Nd6+ Kf8 46. Nf5 Qxg6 47. Qd6+ Ke8 48. Qe7# 1-0

[Event "45th FIDE Womens Olympiad 2024"]
[Site "Budapest"]
[Date "2024.09.16"]
[Round "6.159"]
[White "Boshra, Alshaeby"]
[Black "Berezovska, Svetlana"]
[Result "1/2-1/2"]
[ECO "B28"]
[WhiteElo "1939"]
[BlackElo "1869"]
[PlyCount "47"]
[EventDate "2024.09.05"]
[EventType "team-tourn"]
[EventCountry "HUN"]
[WhiteTeam "Jordan"]
[BlackTeam "Monaco"]
[WhiteTeamCountry "JOR"]
[BlackTeamCountry "MNC"]
[TimeControl "40/5400+30:1800+30"]

1. e4 c5 2. Nf3 a6 3. c4 Nc6 4. d4 cxd4 5. Nxd4 e5 6. Nf5 d5 7. cxd5 Bxf5 8. exf5 Nd4 9. Bd3 Nf6 10. O-O Bd6 11. Bg5 O-O 12. Nc3 Be7 13. Bxf6 Bxf6 14. Qg4 b5 15. Rad1 Rc8 16. Ne4 Kh8 17. d6 Qd7 18. f4 Nc2 19. Rf3 Qa7+ 20. Kh1 Ne3 21. Qh5 Nxd1 22. Qxh7+ Kxh7 23. Nxf6+ gxf6 24. Rh3+ 1/2-1/2

[Event "45th FIDE Womens Olympiad 2024"]
[Site "Budapest"]
[Date "2024.09.16"]
[Round "6.160"]
[White "Dubois, Martine"]
[Black "Ruba, Al-Qudah"]
[Result "1-0"]
[ECO "B22"]
[WhiteElo "1816"]
[BlackElo "1937"]
[PlyCount "75"]
[EventDate "2024.09.05"]
[EventType "team-tourn"]
[EventCountry "HUN"]
[WhiteTeam "Monaco"]
[BlackTeam "Jordan"]
[WhiteTeamCountry "MNC"]
[BlackTeamCountry "JOR"]
[TimeControl "40/5400+30:1800+30"]

1. e4 c5 2. c3 Nf6 3. e5 Nd5 4. d4 cxd4 5. cxd4 Nc6 6. Nf3 d6 7. Bc4 Nb6 8. Bb3 dxe5 9. d5 Na5 10. Nc3 Nxb3 11. Qxb3 f6 12. Be3 g6 13. O-O Kf7 14. Rfd1 Bg4 15. Ne4 Kg7 16. Nc5 Qe8 17. a4 Nc8 18. h3 Bxf3 19. gxf3 Rb8 20. Na6 bxa6 21. Qxb8 Kf7 22. Rac1 Bg7 23. Qb3 Nd6 24. Rc7 Qb8 25. Qxb8 Rxb8 26. Bc5 Nf5 27. d6 Rd8 28. Rxa7 Ke6 29. d7 Nd6 30. Rxa6 Rxd7 31. b4 Bf8 32. b5 Rc7 33. Be3 Kd7 34. b6 Rb7 35. Ra7 Kc8 36. Ra8+ Rb8 37. Rc1+ Kb7 38. Ra7# 1-0

[Event "45th FIDE Womens Olympiad 2024"]
[Site "Budapest"]
[Date "2024.09.16"]
[Round "6.161"]
[White "Gabatshwarwe, Refilwe"]
[Black "Arakhamia-Grant, Ketevan"]
[Result "0-1"]
[ECO "E73"]
[WhiteElo "1787"]
[BlackElo "2263"]
[PlyCount "182"]
[EventDate "2024.09.05"]
[EventType "team-tourn"]
[EventCountry "HUN"]
[WhiteTeam "Botswana"]
[BlackTeam "Scotland"]
[WhiteTeamCountry "BOT"]
[BlackTeamCountry "SCO"]
[TimeControl "40/5400+30:1800+30"]

1. d4 Nf6 2. c4 g6 3. Nc3 Bg7 4. e4 d6 5. Be2 O-O 6. Be3 Na6 7. h3 c5 8. e5 Nd7 9. exd6 exd6 10. Nf3 Nc7 11. O-O Re8 12. Qd2 a6 13. Rfd1 Ne6 14. a4 b6 15. Ra3 Qe7 16. Nd5 Qf8 17. Bf1 Bb7 18. a5 bxa5 19. Qxa5 Rab8 20. b3 Rec8 21. Qd2 Rd8 22. Be2 Re8 23. Bf1 h6 24. Rb1 Kh7 25. Ra2 Qh8 26. dxc5 Ndxc5 27. Rc2 Ne4 28. Qc1 a5 29. Qa3 Ra8 30. Bb6 Nc3 31. Nxc3 Bxc3 32. Qxd6 Bb4 33. Qd7 Re7 34. Qd1 Qf6 35. Be3 Rd8 36. Qc1 Be4 37. Ra2 Bxb1 38. Qxb1 Red7 39. Be2 Nf4 40. Bxf4 Qxf4 41. g3 Qf6 42. Kg2 Kg7 43. Rc2 Bc5 44. Ra2 Bb4 45. Rc2 Rc7 46. h4 Rc5 47. Qb2 Qxb2 48. Rxb2 Kf6 49. Rb1 Rc7 50. Rc1 Re7 51. Bf1 Bc5 52. Ra1 Ra7 53. Be2 Ke6 54. Ra2 Bb4 55. Ra1 f6 56. g4 Rc7 57. Kg3 Kf7 58. g5 Re7 59. Bf1 hxg5 60. hxg5 f5 61. c5 Re4 62. Nh2 Bxc5 63. Bc4+ Kg7 64. Rxa5 Bd6+ 65. Kg2 Re7 66. Rd5 Bc7 67. Rxd8 Bxd8 68. Nf1 Re4 69. Nd2 Rg4+ 70. Kf1 Bxg5 71. Nf3 Bf6 72. Ke2 Re4+ 73. Kf1 g5 74. Nd2 Rd4 75. Nf3 Rd6 76. Ne1 Bc3 77. Nf3 Kf6 78. Ng1 Rd1+ 79. Kg2 Rb1 80. Ne2 Be5 81. Ng3 Rb2 82. Nh5+ Kg6 83. Ng3 Bd6 84. Be6 Kf6 85. Bc4 Bc5 86. Ne2 g4 87. f3 Kg5 88. fxg4 Kxg4 89. Kf1 f4 90. Ke1 f3 91. Nc1 Be3 {0-} 0-1